[Event "Tournoi norme de MI"]
[Site "PARIS"]
[Date "????.??.??"]
[Round "5.5"]
[White "Bonte, Andrei-Mihai"]
[Black "Bassini, Emile"]
[Result "0-1"]
[TimeControl "90mn+30s/c"]
[WhiteElo "2340"]
[BlackElo "2382"]

1. d4 {[%clk 01:30:41]} {[%emt 00:00:18]} Nf6 {[%clk 01:30:25]} {[%emt
00:00:36]} 2. Nf3 {[%clk 01:31:02]} {[%emt 00:00:08]} g6 {[%clk 01:30:21]}
{[%emt 00:00:34]} 3. c4 {[%clk 01:28:59]} {[%emt 00:02:33]} Bg7 {[%clk
01:30:46]} {[%emt 00:00:06]} 4. Nc3 {[%clk 01:29:24]} {[%emt 00:00:05]} O-O
{[%clk 01:31:12]} {[%emt 00:00:05]} 5. Bg5 {[%clk 01:27:14]} {[%emt 00:02:39]}
h6 {[%clk 01:29:37]} {[%emt 00:02:05]} 6. Bh4 {[%clk 01:27:29]} {[%emt
00:00:15]} c5 {[%clk 01:30:02]} {[%emt 00:00:06]} 7. e3 {[%clk 01:24:21]}
{[%emt 00:03:37]} cxd4 {[%clk 01:24:51]} {[%emt 00:05:41]} 8. Nxd4 {[%clk
01:24:28]} {[%emt 00:00:23]} Nc6 {[%clk 01:15:51]} {[%emt 00:09:30]} 9. Qd2
{[%clk 01:15:47]} {[%emt 00:09:10]} d6 {[%clk 01:09:03]} {[%emt 00:07:19]} 10.
Be2 {[%clk 01:15:38]} {[%emt 00:00:39]} Bd7 {[%clk 01:08:21]} {[%emt 00:01:12]}
11. O-O {[%clk 01:15:26]} {[%emt 00:00:41]} a6 {[%clk 01:07:40]} {[%emt
00:01:12]} 12. Rfd1 {[%clk 01:10:42]} {[%emt 00:05:13]} Rc8 {[%clk 01:04:17]}
{[%emt 00:03:54]} 13. Rac1 {[%clk 01:07:54]} {[%emt 00:03:18]} Nxd4 {[%clk
00:35:25]} {[%emt 00:29:22]} 14. exd4 {[%clk 01:06:46]} {[%emt 00:01:37]} g5
{[%clk 00:34:51]} {[%emt 00:01:05]} 15. Bg3 {[%clk 01:07:03]} {[%emt 00:00:13]}
b5 {[%clk 00:35:16]} {[%emt 00:00:05]} 16. cxb5 {[%clk 01:00:30]} {[%emt
00:07:03]} axb5 {[%clk 00:35:31]} {[%emt 00:00:14]} 17. Nxb5 {[%clk 00:59:20]}
{[%emt 00:01:40]} Ne4 {[%clk 00:33:53]} {[%emt 00:02:08]} 18. Qe3 {[%clk
00:47:19]} {[%emt 00:12:31]} Rxc1 {[%clk 00:31:03]} {[%emt 00:03:17]} 19. Rxc1
{[%clk 00:47:39]} {[%emt 00:00:14]} f5 {[%clk 00:31:19]} {[%emt 00:00:14]} 20.
Qb3+ {[%clk 00:40:11]} {[%emt 00:07:58]} Kh8 {[%clk 00:31:33]} {[%emt
00:00:17]} 21. Bd3 {[%clk 00:40:02]} {[%emt 00:00:39]} Bxb5 {[%clk 00:19:13]}
{[%emt 00:12:50]} 22. Qxb5 {[%clk 00:39:36]} {[%emt 00:00:56]} Qa8 {[%clk
00:19:35]} {[%emt 00:00:09]} 23. Qd7 {[%clk 00:09:07]} {[%emt 00:30:59]} f4
{[%clk 00:17:10]} {[%emt 00:02:55]} 24. Qxe7 {[%clk 00:09:21]} {[%emt
00:00:16]} Nf6 {[%clk 00:15:49]} {[%emt 00:01:51]} 25. Bxf4 {[%clk 00:03:15]}
{[%emt 00:06:36]} gxf4 {[%clk 00:16:17]} {[%emt 00:00:01]} 26. Rc7 {[%clk
00:02:06]} {[%emt 00:01:39]} Ne8 {[%clk 00:16:17]} {[%emt 00:00:30]} 27. Rb7
{[%clk 00:01:11]} {[%emt 00:01:25]} Qxa2 {[%clk 00:13:48]} {[%emt 00:03:00]} 28.
Rb8 {[%clk 00:01:21]} {[%emt 00:00:19]} Qg8 {[%clk 00:13:54]} {[%emt 00:00:24]}
29. h4 {[%clk 00:00:43]} {[%emt 00:01:08]} f3 {[%clk 00:09:51]} {[%emt
00:04:33]} 30. g3 {[%clk 00:01:08]} {[%emt 00:00:05]} Bxd4 {[%clk 00:09:36]}
{[%emt 00:00:45]} 31. Bg6 {[%clk 00:01:29]} {[%emt 00:00:09]} Qxg6 {[%clk
00:07:50]} {[%emt 00:02:16]} 32. Qxf8+ {[%clk 00:01:51]} {[%emt 00:00:08]} Kh7
{[%clk 00:08:18]} {[%emt 00:00:02]} 33. Qxf3 {[%clk 00:01:34]} {[%emt
00:00:47]} Ng7 {[%clk 00:08:40]} {[%emt 00:00:08]} 34. Rb7 {[%clk 00:01:15]}
{[%emt 00:00:49]} h5 {[%clk 00:08:28]} {[%emt 00:00:42]} 35. Kg2 {[%clk
00:01:35]} {[%emt 00:00:10]} Bf6 {[%clk 00:08:44]} {[%emt 00:00:14]} 36. Kh2
{[%clk 00:01:13]} {[%emt 00:00:52]} Be5 {[%clk 00:09:09]} {[%emt 00:00:05]} 37.
b4 {[%clk 00:01:09]} {[%emt 00:00:35]} Kh6 {[%clk 00:09:15]} {[%emt 00:00:24]}
38. Qf8 {[%clk 00:00:49]} {[%emt 00:00:50]} Qe4 {[%clk 00:09:22]} {[%emt
00:00:22]} 39. Qe7 {[%clk 00:00:41]} {[%emt 00:00:39]} Kh7 {[%clk 00:05:41]}
{[%emt 00:04:11]} 40. Qf7 {[%clk 00:00:43]} {[%emt 00:00:28]} Qxh4+ {[%clk
00:06:03]} {[%emt 00:00:08]} 41. Kg1 {[%clk 00:00:59]} {[%emt 00:00:14]} Qg4
{[%clk 00:06:12]} {[%emt 00:00:22]} 42. Kg2 {[%clk 00:00:37]} {[%emt 00:00:51]}
h4 {[%clk 00:06:28]} {[%emt 00:00:15]} 43. Qd5 {[%clk 00:00:38]} {[%emt
00:00:30]} hxg3 {[%clk 00:05:50]} {[%emt 00:01:08]} 44. Qd3+ {[%clk 00:00:46]}
{[%emt 00:00:21]} Kh6 {[%clk 00:06:15]} {[%emt 00:00:05]} 45. fxg3 {[%clk
00:01:04]} {[%emt 00:00:12]} Nf5 {[%clk 00:06:33]} {[%emt 00:00:12]} 46. Rf7
{[%clk 00:01:14]} {[%emt 00:00:19]} Kg6 {[%clk 00:04:19]} {[%emt 00:02:44]} 47.
Rf8 {[%clk 00:01:37]} {[%emt 00:00:07]} Bf6 {[%clk 00:03:58]} {[%emt 00:00:52]}
48. b5 {[%clk 00:01:29]} {[%emt 00:00:38]} Kg7 {[%clk 00:04:27]} 49. Re8 {[%clk
00:01:21]} {[%emt 00:00:38]} Be5 {[%clk 00:03:47]} {[%emt 00:01:10]} 50. b6
{[%clk 00:00:44]} {[%emt 00:01:07]} Bxg3 {[%clk 00:03:29]} {[%emt 00:00:48]} 51.
b7 {[%clk 00:00:47]} {[%emt 00:00:27]} Be5+ {[%clk 00:02:30]} {[%emt 00:01:29]}
52. Kf1 {[%clk 00:00:51]} {[%emt 00:00:25]} Ng3+ {[%clk 00:02:46]} {[%emt
00:00:14]} 53. Ke1 {[%clk 00:00:42]} {[%emt 00:00:39]} Qb4+ {[%clk 00:03:15]}
{[%emt 00:00:02]} 54. Kf2 {[%clk 00:00:38]} {[%emt 00:00:34]} Qxb7 {[%clk
00:03:30]} {[%emt 00:00:15]} 55. Rxe5 {[%clk 00:00:45]} {[%emt 00:00:24]} Nh1+
{[%clk 00:03:36]} {[%emt 00:00:23]} 56. Kg1 {[%clk 00:00:47]} {[%emt 00:00:26]}
dxe5 {[%clk 00:04:02]} {[%emt 00:00:06]} 57. Qf5 {[%clk 00:00:44]} {[%emt
00:00:33]} Qd5 {[%clk 00:03:49]} {[%emt 00:00:43]} 58. Qg5+ {[%clk 00:00:43]}
{[%emt 00:00:32]} Kf7 {[%clk 00:04:15]} {[%emt 00:00:04]} 59. Qh5+ {[%clk
00:00:54]} {[%emt 00:00:19]} Ke7 {[%clk 00:03:55]} {[%emt 00:00:50]} 60. Qh4+
{[%clk 00:00:49]} {[%emt 00:00:35]} Kd7 {[%clk 00:04:16]} {[%emt 00:00:09]} 61.
Qg4+ {[%clk 00:00:56]} {[%emt 00:00:22]} Kd6 {[%clk 00:04:12]} {[%emt
00:00:35]} 62. Qg6+ {[%clk 00:01:14]} {[%emt 00:00:12]} Kc5 {[%clk 00:04:23]}
{[%emt 00:00:19]} 63. Qc2+ {[%clk 00:00:34]} {[%emt 00:01:10]} Kb6 {[%clk
00:03:52]} {[%emt 00:01:01]} 64. Qb1+ {[%clk 00:00:42]} {[%emt 00:00:22]} Ka6
{[%clk 00:03:54]} {[%emt 00:00:28]} 65. Qa1+ {[%clk 00:00:48]} {[%emt
00:00:24]} Kb5 {[%clk 00:03:08]} {[%emt 00:01:16]} 66. Qb2+ {[%clk 00:01:06]}
{[%emt 00:00:11]} Kc6 {[%clk 00:03:29]} {[%emt 00:00:09]} 67. Kh2 {[%clk
00:01:24]} {[%emt 00:00:11]} Qe4 {[%clk 00:02:51]} {[%emt 00:01:09]} 68. Qc3+
{[%clk 00:01:18]} {[%emt 00:00:36]} Kd7 {[%clk 00:02:57]} {[%emt 00:00:25]} 69.
Qh3+ {[%clk 00:01:17]} {[%emt 00:00:31]} Ke7 {[%clk 00:02:57]} {[%emt
00:00:30]} 70. Qa3+ {[%clk 00:01:35]} {[%emt 00:00:12]} Kf6 {[%clk 00:02:14]}
{[%emt 00:01:13]} 71. Qf8+ {[%clk 00:01:48]} {[%emt 00:00:16]} Kg5 {[%clk
00:02:15]} {[%emt 00:00:29]} 72. Qg7+ {[%clk 00:01:55]} {[%emt 00:00:23]} Kf4
{[%clk 00:02:28]} {[%emt 00:00:17]} 73. Qf7+ {[%clk 00:00:34]} {[%emt
00:01:51]} Ke3 {[%clk 00:02:40]} {[%emt 00:00:18]} 74. Qb3+ {[%clk 00:00:55]}
{[%emt 00:00:09]} Kf2 {[%clk 00:02:29]} {[%emt 00:00:41]} 75. Qb6+ {[%clk
00:00:42]} {[%emt 00:00:43]} Qe3 {[%clk 00:02:50]} {[%emt 00:00:09]} 0-1

[Event "Tournoi norme de MI"]
[Site "PARIS"]
[Date "????.??.??"]
[Round "5.4"]
[White "Vlachos, Anatole"]
[Black "Navrotescu, Andreea"]
[Result "1-0"]
[TimeControl "90mn+30s/c"]
[WhiteElo "2430"]
[BlackElo "2228"]

1. c4 {[%clk 01:28:35]} {[%emt 00:02:24]} e5 {[%clk 01:30:49]} {[%emt
00:00:10]} 2. g3 {[%clk 01:28:59]} {[%emt 00:00:07]} Nc6 {[%clk 01:30:42]}
{[%emt 00:00:38]} 3. Bg2 {[%clk 01:29:25]} {[%emt 00:00:04]} Bc5 {[%clk
01:30:55]} {[%emt 00:00:17]} 4. Nc3 {[%clk 01:29:37]} {[%emt 00:00:17]} a6
{[%clk 01:30:48]} {[%emt 00:00:38]} 5. a3 {[%clk 01:28:33]} {[%emt 00:01:34]}
d6 {[%clk 01:30:35]} {[%emt 00:00:42]} 6. e3 {[%clk 01:25:38]} {[%emt
00:03:25]} Ba7 {[%clk 01:30:38]} {[%emt 00:00:27]} 7. d3 {[%clk 01:24:26]}
{[%emt 00:01:43]} h5 {[%clk 01:30:32]} {[%emt 00:00:36]} 8. Nf3 {[%clk
01:22:54]} {[%emt 00:02:02]} Nge7 {[%clk 01:23:37]} {[%emt 00:07:24]} 9. Qc2
{[%clk 01:16:41]} {[%emt 00:06:44]} Ng6 {[%clk 01:15:37]} {[%emt 00:08:30]} 10.
h4 {[%clk 01:17:07]} {[%emt 00:00:04]} Bg4 {[%clk 01:13:37]} {[%emt 00:02:29]}
11. b4 {[%clk 01:09:07]} {[%emt 00:08:30]} Qd7 {[%clk 01:11:22]} {[%emt
00:02:45]} 12. Bb2 {[%clk 01:08:38]} {[%emt 00:01:01]} O-O {[%clk 01:09:39]}
{[%emt 00:02:12]} 13. Nh2 {[%clk 01:07:26]} {[%emt 00:01:42]} Nge7 {[%clk
01:03:49]} {[%emt 00:06:19]} 14. Nxg4 {[%clk 01:06:49]} {[%emt 00:01:07]} Qxg4
{[%clk 01:04:17]} {[%emt 00:00:02]} 15. Ne4 {[%clk 01:03:21]} {[%emt 00:03:59]}
f6 {[%clk 00:54:10]} {[%emt 00:10:37]} 16. Bh3 {[%clk 01:01:55]} {[%emt
00:01:55]} Qg6 {[%clk 00:53:45]} {[%emt 00:00:55]} 17. O-O-O {[%clk 01:02:01]}
{[%emt 00:00:24]} Qf7 {[%clk 00:53:13]} {[%emt 00:01:02]} 18. d4 {[%clk
01:00:01]} {[%emt 00:02:31]} exd4 {[%clk 00:50:22]} {[%emt 00:03:21]} 19. exd4
{[%clk 01:00:20]} {[%emt 00:00:11]} d5 {[%clk 00:49:55]} {[%emt 00:00:57]} 20.
Nc5 {[%clk 01:00:45]} {[%emt 00:00:04]} Bxc5 {[%clk 00:34:02]} {[%emt
00:16:23]} 21. dxc5 {[%clk 01:01:13]} {[%emt 00:00:02]} Ne5 {[%clk 00:31:22]}
{[%emt 00:03:10]} 22. Rhe1 {[%clk 00:59:12]} {[%emt 00:02:31]} d4 {[%clk
00:27:36]} {[%emt 00:04:17]} 23. Rxd4 {[%clk 00:54:34]} {[%emt 00:05:08]} Kh8
{[%clk 00:27:22]} {[%emt 00:00:43]} 24. Rde4 {[%clk 00:50:02]} {[%emt
00:05:01]} N7c6 {[%clk 00:27:09]} {[%emt 00:00:44]} 25. b5 {[%clk 00:50:00]}
{[%emt 00:00:32]} axb5 {[%clk 00:27:07]} {[%emt 00:00:33]} 26. cxb5 {[%clk
00:50:29]} {[%emt 00:00:01]} Na5 {[%clk 00:26:28]} {[%emt 00:01:08]} 27. f4
{[%clk 00:43:59]} {[%emt 00:07:00]} Ng4 {[%clk 00:24:51]} {[%emt 00:02:07]} 28.
Re7 {[%clk 00:43:52]} {[%emt 00:00:37]} Qa2 {[%clk 00:20:38]} {[%emt 00:04:43]}
29. Bxg4 {[%clk 00:38:47]} {[%emt 00:05:35]} Nb3+ {[%clk 00:19:26]} {[%emt
00:01:42]} 30. Kd1 {[%clk 00:39:15]} {[%emt 00:00:01]} hxg4 {[%clk 00:19:36]}
{[%emt 00:00:21]} 31. R1e2 {[%clk 00:38:56]} {[%emt 00:00:49]} Na1 {[%clk
00:15:12]} {[%emt 00:04:54]} 32. Qg6 {[%clk 00:35:55]} {[%emt 00:03:30]} Qd5+
{[%clk 00:15:17]} {[%emt 00:00:26]} 33. Kc1 {[%clk 00:33:47]} {[%emt 00:02:37]}
Rg8 {[%clk 00:14:15]} {[%emt 00:01:33]} 34. f5 {[%clk 00:26:09]} {[%emt
00:08:08]} Qc4+ {[%clk 00:14:09]} {[%emt 00:00:36]} 35. Kd1 {[%clk 00:22:37]}
{[%emt 00:04:01]} Qb3+ {[%clk 00:10:38]} {[%emt 00:04:02]} 36. Ke1 {[%clk
00:16:49]} {[%emt 00:06:18]} Qxg3+ {[%clk 00:11:00]} {[%emt 00:00:08]} 37. Kf1
{[%clk 00:15:58]} {[%emt 00:01:21]} Qxh4 {[%clk 00:08:58]} {[%emt 00:02:32]} 38.
Qxg4 {[%clk 00:16:20]} {[%emt 00:00:08]} Qh1+ {[%clk 00:07:57]} {[%emt
00:01:31]} 39. Qg1 {[%clk 00:16:25]} {[%emt 00:00:24]} Qh3+ {[%clk 00:06:14]}
{[%emt 00:02:13]} 40. Qg2 {[%clk 00:14:58]} {[%emt 00:01:56]} Qxf5+ {[%clk
00:05:20]} {[%emt 00:01:25]} 41. Kg1 {[%clk 00:15:20]} {[%emt 00:00:08]} Qb1+
{[%clk 00:01:45]} {[%emt 00:04:05]} 42. Re1 {[%clk 00:13:05]} {[%emt 00:02:45]}
Qh7 {[%clk 00:02:04]} {[%emt 00:00:11]} 43. R1e3 {[%clk 00:11:01]} {[%emt
00:02:34]} Ra4 {[%clk 00:01:40]} {[%emt 00:00:54]} 44. Rh3 {[%clk 00:11:22]}
{[%emt 00:00:09]} Rh4 {[%clk 00:02:00]} {[%emt 00:00:10]} 45. Rxh4 {[%clk
00:11:39]} {[%emt 00:00:13]} Qxh4 {[%clk 00:02:28]} {[%emt 00:00:02]} 46. Re3
{[%clk 00:09:03]} {[%emt 00:03:06]} Rd8 {[%clk 00:01:21]} {[%emt 00:01:38]} 47.
Rh3 {[%clk 00:09:23]} {[%emt 00:00:09]} 1-0

[Event "Tournoi norme de MI"]
[Site "PARIS"]
[Date "????.??.??"]
[Round "5.2"]
[White "Mouhamad, Joachim"]
[Black "Duboue, Peio"]
[Result "1/2-1/2"]
[TimeControl "90mn+30s/c"]
[WhiteElo "2301"]
[BlackElo "2462"]

1. e4 {[%clk 01:30:55]} {[%emt 00:00:04]} c6 {[%clk 01:30:58]} {[%emt
00:00:03]} 2. d4 {[%clk 01:31:02]} {[%emt 00:00:23]} d5 {[%clk 01:31:23]}
{[%emt 00:00:04]} 3. e5 {[%clk 01:31:07]} {[%emt 00:00:25]} c5 {[%clk
01:31:48]} {[%emt 00:00:05]} 4. Nf3 {[%clk 01:31:09]} {[%emt 00:00:28]} cxd4
{[%clk 01:29:46]} {[%emt 00:02:33]} 5. Qxd4 {[%clk 01:31:29]} {[%emt 00:00:10]}
e6 {[%clk 01:22:36]} {[%emt 00:07:40]} 6. Bd3 {[%clk 01:31:23]} {[%emt
00:00:36]} Nc6 {[%clk 01:18:20]} {[%emt 00:04:46]} 7. Qf4 {[%clk 01:31:42]}
{[%emt 00:00:09]} Nb4 {[%clk 01:18:34]} {[%emt 00:00:17]} 8. O-O {[%clk
01:32:04]} {[%emt 00:00:08]} Nxd3 {[%clk 01:18:44]} {[%emt 00:00:21]} 9. cxd3
{[%clk 01:32:20]} {[%emt 00:00:13]} Ne7 {[%clk 01:18:25]} {[%emt 00:00:49]} 10.
Nc3 {[%clk 01:27:56]} {[%emt 00:04:54]} Ng6 {[%clk 01:16:54]} {[%emt 00:02:01]}
11. Qg3 {[%clk 01:26:05]} {[%emt 00:02:21]} Be7 {[%clk 01:15:49]} {[%emt
00:01:36]} 12. Ne2 {[%clk 01:11:53]} {[%emt 00:14:41]} f6 {[%clk 00:57:32]}
{[%emt 00:18:46]} 13. Nf4 {[%clk 01:04:11]} {[%emt 00:08:13]} Nxe5 {[%clk
00:57:38]} {[%emt 00:00:25]} 14. Nxe5 {[%clk 00:59:40]} {[%emt 00:05:01]} fxe5
{[%clk 00:58:04]} {[%emt 00:00:04]} 15. Nh5 {[%clk 00:58:51]} {[%emt 00:01:18]}
g6 {[%clk 00:58:25]} {[%emt 00:00:09]} 16. Qxe5 {[%clk 00:58:38]} {[%emt
00:00:43]} Rg8 {[%clk 00:58:30]} {[%emt 00:00:25]} 17. Ng3 {[%clk 00:52:58]}
{[%emt 00:06:10]} Bf6 {[%clk 00:53:55]} {[%emt 00:05:05]} 18. Qe1 {[%clk
00:49:15]} {[%emt 00:04:14]} Kf7 {[%clk 00:50:52]} {[%emt 00:03:32]} 19. Ne2
{[%clk 00:47:41]} {[%emt 00:02:04]} e5 {[%clk 00:49:52]} {[%emt 00:01:30]} 20.
f4 {[%clk 00:45:36]} {[%emt 00:02:36]} e4 {[%clk 00:37:08]} {[%emt 00:13:14]}
21. dxe4 {[%clk 00:45:04]} {[%emt 00:01:02]} dxe4 {[%clk 00:37:34]} {[%emt
00:00:04]} 22. Be3 {[%clk 00:44:20]} {[%emt 00:01:14]} Bf5 {[%clk 00:33:12]}
{[%emt 00:04:52]} 23. Rd1 {[%clk 00:42:42]} {[%emt 00:02:09]} Qe7 {[%clk
00:33:38]} {[%emt 00:00:03]} 24. Nc3 {[%clk 00:26:23]} {[%emt 00:16:48]} Rgd8
{[%clk 00:33:32]} {[%emt 00:00:36]} 25. Nd5 {[%clk 00:23:55]} {[%emt 00:02:59]}
Qd6 {[%clk 00:33:53]} {[%emt 00:00:09]} 26. Nxf6 {[%clk 00:20:30]} {[%emt
00:03:55]} Qxd1 {[%clk 00:33:06]} {[%emt 00:01:17]} 27. Qxd1 {[%clk 00:20:51]}
{[%emt 00:00:09]} Rxd1 {[%clk 00:33:32]} {[%emt 00:00:04]} 28. Rxd1 {[%clk
00:21:15]} {[%emt 00:00:05]} Kxf6 {[%clk 00:34:00]} {[%emt 00:00:03]} 29. Rc1
{[%clk 00:20:55]} {[%emt 00:00:50]} h5 {[%clk 00:27:10]} {[%emt 00:07:19]} 30.
Rc7 {[%clk 00:20:49]} {[%emt 00:00:37]} b6 {[%clk 00:27:37]} {[%emt 00:00:03]}
31. a4 {[%clk 00:11:43]} {[%emt 00:09:36]} Ke6 {[%clk 00:27:30]} {[%emt
00:00:38]} 32. h3 {[%clk 00:09:01]} {[%emt 00:03:12]} Kd6 {[%clk 00:27:23]}
{[%emt 00:00:36]} 33. Rg7 {[%clk 00:09:20]} {[%emt 00:00:12]} Kd5 {[%clk
00:25:17]} {[%emt 00:02:36]} 34. a5 {[%clk 00:04:10]} {[%emt 00:05:40]} Kc4
{[%clk 00:23:35]} {[%emt 00:02:12]} 35. g4 {[%clk 00:02:13]} {[%emt 00:02:28]}
hxg4 {[%clk 00:22:54]} {[%emt 00:01:11]} 36. hxg4 {[%clk 00:02:41]} {[%emt
00:00:01]} Bxg4 {[%clk 00:23:18]} {[%emt 00:00:06]} 37. axb6 {[%clk 00:02:25]}
{[%emt 00:00:47]} axb6 {[%clk 00:23:47]} {[%emt 00:00:01]} 38. Rxg6 {[%clk
00:02:24]} {[%emt 00:00:31]} Bf3 {[%clk 00:24:15]} {[%emt 00:00:01]} 39. Rxb6
{[%clk 00:02:04]} {[%emt 00:00:50]} Rg8+ {[%clk 00:24:17]} {[%emt 00:00:28]} 40.
Kf1 {[%clk 00:02:16]} {[%emt 00:00:18]} Kd3 {[%clk 00:22:07]} {[%emt 00:02:40]}
41. Rb3+ {[%clk 00:02:33]} {[%emt 00:00:13]} Kc2 {[%clk 00:22:25]} {[%emt
00:00:12]} 42. Rc3+ {[%clk 00:02:00]} {[%emt 00:01:03]} Kxb2 {[%clk 00:22:51]}
{[%emt 00:00:04]} 43. Bd4 {[%clk 00:01:48]} {[%emt 00:00:42]} Ka2 {[%clk
00:21:27]} {[%emt 00:01:54]} 44. f5 {[%clk 00:01:54]} {[%emt 00:00:25]} Rf8
{[%clk 00:20:55]} {[%emt 00:01:02]} 45. f6 {[%clk 00:02:16]} {[%emt 00:00:08]}
Rd8 {[%clk 00:20:08]} {[%emt 00:01:17]} 46. Be5 {[%clk 00:02:08]} {[%emt
00:00:38]} Re8 {[%clk 00:20:00]} {[%emt 00:00:38]} 47. Bd6 {[%clk 00:01:37]}
{[%emt 00:01:01]} Bh5 {[%clk 00:20:28]} {[%emt 00:00:01]} 48. Be7 {[%clk
00:01:23]} {[%emt 00:00:44]} Bf7 {[%clk 00:17:34]} {[%emt 00:03:24]} 49. Rh3
{[%clk 00:01:24]} {[%emt 00:00:30]} Be6 {[%clk 00:17:11]} {[%emt 00:00:53]} 50.
Rh7 {[%clk 00:01:09]} {[%emt 00:00:45]} Kb3 {[%clk 00:17:23]} {[%emt 00:00:18]}
51. Kf2 {[%clk 00:00:58]} {[%emt 00:00:41]} Kc4 {[%clk 00:17:17]} {[%emt
00:00:36]} 52. Ke3 {[%clk 00:01:26]} {[%emt 00:00:02]} Kd5 {[%clk 00:16:24]}
{[%emt 00:01:24]} 53. Rh5+ {[%clk 00:01:50]} {[%emt 00:00:06]} Kc6 {[%clk
00:16:41]} {[%emt 00:00:13]} 54. Kxe4 {[%clk 00:02:04]} {[%emt 00:00:16]} Bf7
{[%clk 00:16:26]} {[%emt 00:00:45]} 55. Rh2 {[%clk 00:01:20]} {[%emt 00:01:15]}
Rxe7+ {[%clk 00:08:50]} {[%emt 00:08:06]} 56. fxe7 {[%clk 00:01:47]} {[%emt
00:00:02]} Kd7 {[%clk 00:09:05]} {[%emt 00:00:16]} 57. Ke5 {[%clk 00:02:05]}
{[%emt 00:00:12]} Kxe7 {[%emt 00:00:41]} 58. Rh7 {[%clk 00:01:57]} Ke8 {[%clk
00:10:00]} 59. Kf6 {[%clk 00:01:50]} {[%emt 00:00:37]} Bc4 {[%clk 00:10:17]}
{[%emt 00:00:13]} 60. Rc7 {[%clk 00:02:07]} {[%emt 00:00:13]} Bb3 {[%clk
00:10:42]} {[%emt 00:00:05]} 61. Rc3 {[%clk 00:02:29]} {[%emt 00:00:08]} Ba2
{[%clk 00:09:35]} {[%emt 00:01:37]} 62. Rc2 {[%clk 00:02:54]} {[%emt 00:00:06]}
Bb3 {[%clk 00:09:38]} {[%emt 00:00:28]} 63. Rb2 {[%clk 00:03:22]} {[%emt
00:00:02]} Bc4 {[%clk 00:09:55]} {[%emt 00:00:12]} 64. Rb4 {[%clk 00:03:47]}
{[%emt 00:00:05]} Ba2 {[%clk 00:09:55]} {[%emt 00:00:30]} 65. Rd4 {[%clk
00:03:50]} {[%emt 00:00:27]} Bb3 {[%clk 00:10:12]} {[%emt 00:00:13]} 66. Rd2
{[%clk 00:04:09]} {[%emt 00:00:12]} Bc4 {[%clk 00:10:16]} {[%emt 00:00:25]} 67.
Rb2 {[%clk 00:04:37]} {[%emt 00:00:02]} Kd7 {[%clk 00:10:09]} {[%emt 00:00:37]}
1/2-1/2



[ePGN "0.1;DGT LiveChess/2.2.5"]

[Event "Tournoi norme de MI"]
[Site "PARIS"]
[Date "????.??.??"]
[Round "6.3"]
[White "Lazo, Andrei"]
[Black "Laurent, Julien G."]
[Result "1/2-1/2"]
[TimeControl "90mn+30s/c"]
[WhiteElo "2212"]
[BlackElo "2199"]

1. d4 {[%clk 01:30:57]} {[%emt 00:00:02]} Nf6 {[%clk 01:30:51]} {[%emt
00:00:09]} 2. Nf3 {[%clk 01:31:22]} {[%emt 00:00:06]} e6 {[%clk 01:31:11]}
{[%emt 00:00:10]} 3. Bg5 {[%clk 01:31:47]} {[%emt 00:00:05]} c5 {[%clk
01:31:04]} {[%emt 00:00:37]} 4. c3 {[%clk 01:31:42]} {[%emt 00:00:36]} d5
{[%clk 01:27:41]} {[%emt 00:03:52]} 5. e3 {[%clk 01:31:53]} {[%emt 00:00:19]}
Be7 {[%clk 01:26:41]} {[%emt 00:01:30]} 6. Nbd2 {[%clk 01:31:51]} {[%emt
00:00:32]} Nc6 {[%clk 01:26:37]} {[%emt 00:00:34]} 7. Bd3 {[%clk 01:32:14]}
{[%emt 00:00:06]} h6 {[%clk 01:24:57]} {[%emt 00:02:09]} 8. Bh4 {[%clk
01:32:40]} {[%emt 00:00:04]} a6 {[%clk 01:24:02]} {[%emt 00:01:26]} 9. O-O
{[%clk 01:31:36]} {[%emt 00:01:33]} b5 {[%clk 01:21:37]} {[%emt 00:02:55]} 10.
Ne5 {[%clk 01:31:10]} {[%emt 00:00:57]} Nxe5 {[%clk 01:21:21]} {[%emt
00:00:46]} 11. dxe5 {[%clk 01:31:38]} {[%emt 00:00:02]} Nd7 {[%clk 01:21:46]}
{[%emt 00:00:05]} 12. Bg3 {[%clk 01:32:01]} {[%emt 00:00:07]} Bb7 {[%clk
01:21:36]} {[%emt 00:00:39]} 13. f4 {[%clk 01:31:45]} {[%emt 00:00:47]} g6
{[%clk 01:21:23]} {[%emt 00:00:44]} 14. Qc2 {[%clk 01:29:07]} {[%emt 00:03:08]}
Nf8 {[%clk 01:19:35]} {[%emt 00:02:17]} 15. a4 {[%clk 01:24:09]} {[%emt
00:05:29]} c4 {[%clk 01:18:47]} {[%emt 00:01:18]} 16. Be2 {[%clk 01:24:26]}
{[%emt 00:00:12]} Bc5 {[%clk 01:18:40]} {[%emt 00:00:37]} 17. Bf2 {[%clk
01:24:32]} {[%emt 00:00:25]} Qb6 {[%clk 01:18:02]} {[%emt 00:01:07]} 18. e4
{[%clk 01:24:18]} {[%emt 00:00:44]} Bxf2+ {[%clk 01:16:41]} {[%emt 00:01:51]}
19. Rxf2 {[%clk 01:24:46]} {[%emt 00:00:02]} Nd7 {[%clk 01:16:21]} {[%emt
00:00:50]} 20. exd5 {[%clk 01:21:44]} {[%emt 00:03:32]} Bxd5 {[%clk 01:15:20]}
{[%emt 00:01:31]} 21. axb5 {[%clk 01:19:30]} {[%emt 00:02:45]} axb5 {[%clk
01:15:30]} {[%emt 00:00:19]} 22. Rxa8+ {[%clk 01:19:56]} {[%emt 00:00:05]} Bxa8
{[%clk 01:15:46]} {[%emt 00:00:14]} 1/2-1/2